[Event "*** SCC Grand Prix: Titled Tuesday Blitz"]
[Site "Chess.com"]
[Date "2020.10.06"]
[Round "3"]
[White "platy3"]
[Black "NikolaGry"]
[Result "1-0"]
[WhiteElo "2809"]
[BlackElo "2616"]
[TimeControl "180+1"]
[EndTime "10:28:12 PDT"]
[Termination "platy3 won by checkmate"]

1. e4 {[%clk 0:03:00.6]} 1... d6 {[%clk 0:02:59.4]} 2. d4 {[%clk 0:03:00.3]}
2... Nf6 {[%clk 0:03:00]} 3. Nc3 {[%clk 0:03:00.9]} 3... g6 {[%clk 0:03:00.2]}
4. Nf3 {[%clk 0:02:55.2]} 4... Bg7 {[%clk 0:02:59.8]} 5. Be3 {[%clk 0:02:53.4]}
5... a6 {[%clk 0:02:57.4]} 6. Qd2 {[%clk 0:02:52.1]} 6... b5 {[%clk 0:02:57.2]}
7. Bd3 {[%clk 0:02:44.5]} 7... Bb7 {[%clk 0:02:56.6]} 8. a3 {[%clk 0:02:44.2]}
8... O-O {[%clk 0:02:49.9]} 9. Bh6 {[%clk 0:02:39.4]} 9... Nbd7 {[%clk 0:02:35]}
10. h4 {[%clk 0:02:29]} 10... e5 {[%clk 0:02:25.1]} 11. d5 {[%clk 0:02:25.3]}
11... Nc5 {[%clk 0:01:54.1]} 12. h5 {[%clk 0:02:10.7]} 12... Nxh5 {[%clk
0:01:53.4]} 13. b4 {[%clk 0:02:04.4]} 13... Nd7 {[%clk 0:01:40.6]} 14. Ne2
{[%clk 0:01:53.5]} 14... Bh8 {[%clk 0:01:21.5]} 15. Rd1 {[%clk 0:01:36.6]} 15...
Nhf6 {[%clk 0:00:52.9]} 16. Ng3 {[%clk 0:01:26.3]} 16... Re8 {[%clk 0:00:45.8]}
17. Bg5 {[%clk 0:01:20.7]} 17... Qe7 {[%clk 0:00:41.7]} 18. Kf1 {[%clk
0:01:19.4]} 18... Qf8 {[%clk 0:00:41.7]} 19. c4 {[%clk 0:01:18.5]} 19... bxc4
{[%clk 0:00:39.9]} 20. Bxc4 {[%clk 0:01:19.4]} 20... Bg7 {[%clk 0:00:37.1]} 21.
Be2 {[%clk 0:01:10.1]} 21... a5 {[%clk 0:00:31.5]} 22. Rc1 {[%clk 0:01:09.7]}
22... Rec8 {[%clk 0:00:23.6]} 23. Kg1 {[%clk 0:01:01.3]} 23... axb4 {[%clk
0:00:23.3]} 24. axb4 {[%clk 0:01:02.2]} 24... c6 {[%clk 0:00:20.8]} 25. dxc6
{[%clk 0:00:58.9]} 25... Bxc6 {[%clk 0:00:21]} 26. Rh4 {[%clk 0:00:50]} 26... d5
{[%clk 0:00:17.3]} 27. b5 {[%clk 0:00:47.9]} 27... Bb7 {[%clk 0:00:17]} 28. exd5
{[%clk 0:00:46.1]} 28... Rxc1+ {[%clk 0:00:14.7]} 29. Qxc1 {[%clk 0:00:47]}
29... Nxd5 {[%clk 0:00:14.6]} 30. Rc4 {[%clk 0:00:43]} 30... e4 {[%clk
0:00:13.8]} 31. Nd4 {[%clk 0:00:39.7]} 31... N7b6 {[%clk 0:00:12.2]} 32. Nxe4
{[%clk 0:00:33.2]} 32... Nxc4 {[%clk 0:00:11.6]} 33. Qxc4 {[%clk 0:00:34.1]}
33... Ra1+ {[%clk 0:00:10.3]} 34. Kh2 {[%clk 0:00:34.3]} 34... Qb8+ {[%clk
0:00:08.8]} 35. g3 {[%clk 0:00:29.8]} 35... h6 {[%clk 0:00:08.6]} 36. Nc6 {[%clk
0:00:25.3]} 36... Bxc6 {[%clk 0:00:07.5]} 37. bxc6 {[%clk 0:00:26.2]} 37... hxg5
{[%clk 0:00:04.3]} 38. Qxd5 {[%clk 0:00:26.6]} 38... Qb1 {[%clk 0:00:04]} 39.
Bf3 {[%clk 0:00:17.6]} 39... Qg1+ {[%clk 0:00:03.6]} 40. Kh3 {[%clk 0:00:18.2]}
40... g4+ {[%clk 0:00:03.7]} 41. Kxg4 {[%clk 0:00:16.9]} 41... Qc1 {[%clk
0:00:04.3]} 42. Qd8+ {[%clk 0:00:15.2]} 42... Bf8 {[%clk 0:00:03.9]} 43. c7
{[%clk 0:00:08.9]} 43... f5+ {[%clk 0:00:03.7]} 44. Kh3 {[%clk 0:00:09.6]} 44...
fxe4 {[%clk 0:00:03.7]} 45. c8=Q {[%clk 0:00:05.5]} 45... Qf1+ {[%clk
0:00:02.5]} 46. Bg2 {[%clk 0:00:05.2]} 46... Qxf2 {[%clk 0:00:02.9]} 47. Qd5+
{[%clk 0:00:05.3]} 47... Kg7 {[%clk 0:00:02.8]} 48. Qc3+ {[%clk 0:00:05.4]}
48... Kh6 {[%clk 0:00:03]} 49. Qh8# {[%clk 0:00:03.3]} 1-0

[Event "*** SCC Grand Prix: Titled Tuesday Blitz"]
[Site "Chess.com"]
[Date "2020.10.06"]
[Round "3"]
[White "Aygehovit1992"]
[Black "Durarbayli"]
[Result "0-1"]
[WhiteElo "2631"]
[BlackElo "2816"]
[TimeControl "180+1"]
[EndTime "10:28:14 PDT"]
[Termination "Durarbayli won by resignation"]

1. Nf3 {[%clk 0:03:00.9]} 1... Nf6 {[%clk 0:02:59.8]} 2. g3 {[%clk 0:03:00.8]}
2... b6 {[%clk 0:03:00.3]} 3. Bg2 {[%clk 0:03:01.7]} 3... Bb7 {[%clk 0:03:00.8]}
4. O-O {[%clk 0:03:02.6]} 4... e6 {[%clk 0:03:01.3]} 5. b3 {[%clk 0:03:02.5]}
5... Be7 {[%clk 0:03:00.6]} 6. Bb2 {[%clk 0:03:02.9]} 6... O-O {[%clk
0:03:00.7]} 7. c4 {[%clk 0:03:03.4]} 7... c5 {[%clk 0:03:00.7]} 8. Nc3 {[%clk
0:03:03.2]} 8... d6 {[%clk 0:02:54.2]} 9. d4 {[%clk 0:03:01.1]} 9... cxd4 {[%clk
0:02:55.1]} 10. Qxd4 {[%clk 0:02:57.3]} 10... a6 {[%clk 0:02:52.9]} 11. Rad1
{[%clk 0:02:56.6]} 11... Nbd7 {[%clk 0:02:52.9]} 12. e4 {[%clk 0:02:54.8]} 12...
Qc7 {[%clk 0:02:42.7]} 13. Rfe1 {[%clk 0:02:52.3]} 13... Rac8 {[%clk 0:02:39.2]}
14. e5 {[%clk 0:02:26.7]} 14... dxe5 {[%clk 0:02:32.6]} 15. Nxe5 {[%clk
0:02:26.1]} 15... Bxg2 {[%clk 0:02:16.3]} 16. Kxg2 {[%clk 0:01:47.6]} 16... Bc5
{[%clk 0:01:32.4]} 17. Qf4 {[%clk 0:01:16.9]} 17... Nxe5 {[%clk 0:01:31.2]} 18.
Qxe5 {[%clk 0:01:08.6]} 18... Qxe5 {[%clk 0:01:17.5]} 19. Rxe5 {[%clk
0:01:09.5]} 19... Bxf2 {[%clk 0:01:17.4]} 20. Re2 {[%clk 0:01:07]} 20... Bc5
{[%clk 0:01:15.2]} 21. Na4 {[%clk 0:01:07.1]} 21... Rfd8 {[%clk 0:01:00.9]} 22.
Rxd8+ {[%clk 0:01:03.9]} 22... Rxd8 {[%clk 0:01:01.8]} 23. Nxc5 {[%clk
0:01:04.4]} 23... bxc5 {[%clk 0:01:02.1]} 24. Ba3 {[%clk 0:01:02.4]} 24... Rc8
{[%clk 0:01:00.3]} 25. Rd2 {[%clk 0:01:01.9]} 25... Ne4 {[%clk 0:00:52.5]} 26.
Rd7 {[%clk 0:00:58.8]} 26... g5 {[%clk 0:00:45.6]} 27. Kf3 {[%clk 0:00:38.7]}
27... Nc3 {[%clk 0:00:37.5]} 28. Kg4 {[%clk 0:00:37.8]} 28... Nxa2 {[%clk
0:00:20.1]} 29. Kxg5 {[%clk 0:00:37.8]} 29... Nc3 {[%clk 0:00:20.6]} 30. Bb2
{[%clk 0:00:30.1]} 30... Ne4+ {[%clk 0:00:19.8]} 31. Kf4 {[%clk 0:00:30.4]}
31... Nf2 {[%clk 0:00:13.6]} 32. Rd2 {[%clk 0:00:27.9]} 32... Nh3+ {[%clk
0:00:12.4]} 33. Kg4 {[%clk 0:00:27.8]} 33... Ng1 {[%clk 0:00:12.7]} 34. Rg2
{[%clk 0:00:27.9]} 34... f5+ {[%clk 0:00:10.9]} 35. Kf4 {[%clk 0:00:20.1]} 35...
Nh3+ {[%clk 0:00:10.5]} 36. Ke5 {[%clk 0:00:20.6]} 36... Kf7 {[%clk 0:00:07.8]}
37. g4 {[%clk 0:00:18.5]} 37... f4 {[%clk 0:00:04.9]} 38. Bc1 {[%clk 0:00:11.4]}
38... f3 {[%clk 0:00:04.2]} 39. Rg3 {[%clk 0:00:11.7]} 39... f2 {[%clk
0:00:04.7]} 40. Rf3+ {[%clk 0:00:11.7]} 40... Kg8 {[%clk 0:00:02.9]} 41. Be3
{[%clk 0:00:11.2]} 41... Rf8 {[%clk 0:00:03]} 42. Rxf8+ {[%clk 0:00:11.2]} 42...
Kxf8 {[%clk 0:00:03.8]} 43. Bxc5+ {[%clk 0:00:11.8]} 43... Kf7 {[%clk
0:00:04.4]} 44. Bxf2 {[%clk 0:00:11.7]} 44... Nxf2 {[%clk 0:00:05.3]} 45. Kd6
{[%clk 0:00:11.8]} 45... Nxg4 {[%clk 0:00:03.6]} 46. c5 {[%clk 0:00:12.1]} 46...
Nf6 {[%clk 0:00:03.9]} 47. c6 {[%clk 0:00:12.1]} 47... Ne8+ {[%clk 0:00:04.4]}
48. Kd7 {[%clk 0:00:12.1]} 48... e5 {[%clk 0:00:04.7]} 49. c7 {[%clk 0:00:09.4]}
49... Nxc7 {[%clk 0:00:04.8]} 50. Kxc7 {[%clk 0:00:10.3]} 50... e4 {[%clk
0:00:05.7]} 51. Kb6 {[%clk 0:00:11.2]} 51... e3 {[%clk 0:00:06.3]} 52. Kxa6
{[%clk 0:00:11.9]} 52... e2 {[%clk 0:00:07.2]} 53. b4 {[%clk 0:00:12.8]} 53...
e1=Q {[%clk 0:00:08.1]} 54. b5 {[%clk 0:00:13.7]} 54... Qe2 {[%clk 0:00:08.7]}
0-1

[Event "*** SCC Grand Prix: Titled Tuesday Blitz"]
[Site "Chess.com"]
[Date "2020.10.06"]
[Round "3"]
[White "PotapovaM"]
[Black "zmeeed67"]
[Result "1-0"]
[WhiteElo "2560"]
[BlackElo "2377"]
[TimeControl "180+1"]
[EndTime "10:28:16 PDT"]
[Termination "PotapovaM won by resignation"]

1. d4 {[%clk 0:03:00.9]} 1... Nc6 {[%clk 0:03:00.2]} 2. Nf3 {[%clk 0:02:59.4]}
2... d6 {[%clk 0:03:00.4]} 3. g3 {[%clk 0:02:51.4]} 3... Bg4 {[%clk 0:02:59]} 4.
Bg2 {[%clk 0:02:51.6]} 4... e5 {[%clk 0:02:58.6]} 5. dxe5 {[%clk 0:02:48.3]}
5... dxe5 {[%clk 0:02:58.2]} 6. Qxd8+ {[%clk 0:02:48.5]} 6... Rxd8 {[%clk
0:02:57.6]} 7. c3 {[%clk 0:02:44.6]} 7... Nf6 {[%clk 0:02:57.3]} 8. O-O {[%clk
0:02:42.1]} 8... Be7 {[%clk 0:02:49.9]} 9. Na3 {[%clk 0:02:41.8]} 9... O-O
{[%clk 0:02:48.2]} 10. Nc4 {[%clk 0:02:41.5]} 10... Nd7 {[%clk 0:02:48.4]} 11.
h3 {[%clk 0:02:36.5]} 11... Be6 {[%clk 0:02:47.9]} 12. Ncd2 {[%clk 0:02:23.6]}
12... h6 {[%clk 0:02:42.1]} 13. b3 {[%clk 0:02:12.4]} 13... f5 {[%clk
0:02:31.9]} 14. e4 {[%clk 0:02:07.9]} 14... f4 {[%clk 0:02:26.6]} 15. gxf4
{[%clk 0:02:00.1]} 15... exf4 {[%clk 0:02:24.3]} 16. Nd4 {[%clk 0:02:00.7]}
16... Bf7 {[%clk 0:02:06.3]} 17. Nxc6 {[%clk 0:01:54.8]} 17... bxc6 {[%clk
0:02:06.4]} 18. Nf3 {[%clk 0:01:55.5]} 18... Bg6 {[%clk 0:01:56.4]} 19. Nd4
{[%clk 0:01:54.2]} 19... c5 {[%clk 0:01:47.6]} 20. Ne6 {[%clk 0:01:52.2]} 20...
f3 {[%clk 0:01:38.7]} 21. Bh1 {[%clk 0:01:47.8]} 21... Bxe4 {[%clk 0:01:25.4]}
22. Re1 {[%clk 0:01:44.4]} 22... Bc6 {[%clk 0:01:21.6]} 23. Nxf8 {[%clk
0:01:24.2]} 23... Bxf8 {[%clk 0:01:20.2]} 24. Re3 {[%clk 0:01:12.6]} 24... Bd6
{[%clk 0:00:58.9]} 25. Bxf3 {[%clk 0:01:06.7]} 25... Bxf3 {[%clk 0:00:57.9]} 26.
Rxf3 {[%clk 0:01:07.6]} 26... Ne5 {[%clk 0:00:58.8]} 27. Rg3 {[%clk 0:01:03.7]}
27... Kh7 {[%clk 0:00:54.9]} 28. Be3 {[%clk 0:00:53.3]} 28... Rf8 {[%clk
0:00:53.3]} 29. Kg2 {[%clk 0:00:49.5]} 29... a5 {[%clk 0:00:43.1]} 30. Rd1
{[%clk 0:00:49]} 30... c4 {[%clk 0:00:39.1]} 31. Bd4 {[%clk 0:00:44.9]} 31...
Ng6 {[%clk 0:00:37.4]} 32. Rg4 {[%clk 0:00:40.4]} 32... h5 {[%clk 0:00:32.5]}
33. Rg5 {[%clk 0:00:37.9]} 33... Kh6 {[%clk 0:00:32.2]} 34. Rxa5 {[%clk
0:00:33.3]} 34... Nf4+ {[%clk 0:00:27.9]} 35. Kf1 {[%clk 0:00:32]} 35... cxb3
{[%clk 0:00:26.8]} 36. axb3 {[%clk 0:00:31.6]} 36... Nxh3 {[%clk 0:00:26.4]} 37.
Be3+ {[%clk 0:00:31.8]} 37... g5 {[%clk 0:00:26.1]} 38. Rdd5 {[%clk 0:00:25.3]}
38... Rg8 {[%clk 0:00:19.4]} 39. b4 {[%clk 0:00:17.6]} 39... Bf4 {[%clk
0:00:15.1]} 40. Ra6+ {[%clk 0:00:15.5]} 40... Bd6 {[%clk 0:00:12.3]} 41. c4
{[%clk 0:00:13.7]} 41... Rg6 {[%clk 0:00:12.6]} 42. c5 {[%clk 0:00:12.3]} 42...
Bf4 {[%clk 0:00:12.9]} 43. Rxg6+ {[%clk 0:00:12]} 43... Kxg6 {[%clk 0:00:12]}
44. b5 {[%clk 0:00:12.4]} 44... h4 {[%clk 0:00:09.2]} 45. b6 {[%clk 0:00:11.9]}
45... cxb6 {[%clk 0:00:08.5]} 46. cxb6 {[%clk 0:00:12.8]} 46... Bh2 {[%clk
0:00:08.2]} 47. b7 {[%clk 0:00:11.1]} 47... g4 {[%clk 0:00:08]} 48. Rd8 {[%clk
0:00:09.1]} 48... Ng5 {[%clk 0:00:06.7]} 49. Rg8+ {[%clk 0:00:08.9]} 49... Kf5
{[%clk 0:00:06.8]} 50. Rxg5+ {[%clk 0:00:09.4]} 50... Ke4 {[%clk 0:00:07.3]} 51.
Rg8 {[%clk 0:00:09.5]} 51... g3 {[%clk 0:00:06.7]} 52. b8=Q {[%clk 0:00:09.3]}
52... g2+ {[%clk 0:00:07]} 53. Kxg2 {[%clk 0:00:10.2]} 53... Bxb8 {[%clk
0:00:06.9]} 54. Rxb8 {[%clk 0:00:10.9]} 1-0

[Event "*** SCC Grand Prix: Titled Tuesday Blitz"]
[Site "Chess.com"]
[Date "2020.10.06"]
[Round "3"]
[White "Keithonsky"]
[Black "A-Fier"]
[Result "1-0"]
[WhiteElo "2581"]
[BlackElo "2775"]
[TimeControl "180+1"]
[EndTime "10:28:17 PDT"]
[Termination "Keithonsky won by resignation"]

1. d4 {[%clk 0:03:00.9]} 1... Nf6 {[%clk 0:02:59.8]} 2. c4 {[%clk 0:02:59.8]}
2... c5 {[%clk 0:03:00.3]} 3. d5 {[%clk 0:03:00]} 3... e6 {[%clk 0:03:00.8]} 4.
Nc3 {[%clk 0:02:59.6]} 4... exd5 {[%clk 0:03:01.2]} 5. cxd5 {[%clk 0:03:00.5]}
5... d6 {[%clk 0:03:01.7]} 6. Nf3 {[%clk 0:03:00.5]} 6... g6 {[%clk 0:03:02.2]}
7. h3 {[%clk 0:02:59.9]} 7... Bg7 {[%clk 0:03:02.3]} 8. Bf4 {[%clk 0:03:00.4]}
8... O-O {[%clk 0:03:01.8]} 9. e3 {[%clk 0:03:00.6]} 9... Na6 {[%clk 0:03:01.5]}
10. Be2 {[%clk 0:02:56.6]} 10... Nc7 {[%clk 0:03:00.3]} 11. O-O {[%clk
0:02:55.2]} 11... Re8 {[%clk 0:03:00.8]} 12. a4 {[%clk 0:02:54.7]} 12... Ne4
{[%clk 0:03:00.6]} 13. Qb3 {[%clk 0:02:54.2]} 13... b6 {[%clk 0:02:53.8]} 14.
Rfd1 {[%clk 0:02:53.2]} 14... Rb8 {[%clk 0:02:48.9]} 15. Nb5 {[%clk 0:02:50.6]}
15... a6 {[%clk 0:02:39.9]} 16. Na7 {[%clk 0:02:44.7]} 16... Qd7 {[%clk
0:02:26.9]} 17. Nxc8 {[%clk 0:02:30.3]} 17... Rexc8 {[%clk 0:02:15.5]} 18. Nd2
{[%clk 0:02:30.5]} 18... Nxd2 {[%clk 0:02:14.2]} 19. Rxd2 {[%clk 0:02:31.4]}
19... b5 {[%clk 0:02:14.1]} 20. axb5 {[%clk 0:02:27.5]} 20... axb5 {[%clk
0:02:04.2]} 21. Ra7 {[%clk 0:02:25.5]} 21... Ra8 {[%clk 0:02:04.1]} 22. Rb7
{[%clk 0:02:13.2]} 22... Rcb8 {[%clk 0:02:01]} 23. Rxb8+ {[%clk 0:02:06.5]}
23... Rxb8 {[%clk 0:02:01.9]} 24. e4 {[%clk 0:02:05]} 24... Re8 {[%clk
0:01:56.6]} 25. f3 {[%clk 0:02:03.1]} 25... h5 {[%clk 0:01:50.3]} 26. Rd1 {[%clk
0:01:55.7]} 26... Qe7 {[%clk 0:01:47.1]} 27. Qc2 {[%clk 0:01:50.4]} 27... Bd4+
{[%clk 0:01:40.7]} 28. Kh1 {[%clk 0:01:49.9]} 28... Be5 {[%clk 0:01:40.8]} 29.
Bxe5 {[%clk 0:01:47.5]} 29... Qxe5 {[%clk 0:01:41.7]} 30. b3 {[%clk 0:01:47.5]}
30... h4 {[%clk 0:01:41.5]} 31. Qd2 {[%clk 0:01:45.3]} 31... Ra8 {[%clk
0:01:37]} 32. Qe1 {[%clk 0:01:44.5]} 32... g5 {[%clk 0:01:35.4]} 33. Qd2 {[%clk
0:01:43.5]} 33... f6 {[%clk 0:01:33]} 34. Bf1 {[%clk 0:01:42.4]} 34... Kg7
{[%clk 0:01:30.3]} 35. Rc1 {[%clk 0:01:42.7]} 35... b4 {[%clk 0:01:26.4]} 36.
Bc4 {[%clk 0:01:42]} 36... Kg6 {[%clk 0:01:22.3]} 37. Rf1 {[%clk 0:01:42.3]}
37... Qf4 {[%clk 0:01:12.6]} 38. Qc2 {[%clk 0:01:38.8]} 38... Kh6 {[%clk
0:01:11.5]} 39. Re1 {[%clk 0:01:37.6]} 39... Ne8 {[%clk 0:01:09.6]} 40. Qb2
{[%clk 0:01:37.4]} 40... Ng7 {[%clk 0:01:04.8]} 41. Ra1 {[%clk 0:01:34.5]} 41...
Rf8 {[%clk 0:00:58]} 42. Qc1 {[%clk 0:01:29.6]} 42... Qxc1+ {[%clk 0:00:56.9]}
43. Rxc1 {[%clk 0:01:29.3]} 43... Ra8 {[%clk 0:00:57.8]} 44. Kg1 {[%clk
0:01:26]} 44... Ra2 {[%clk 0:00:55.2]} 45. Re1 {[%clk 0:01:19.6]} 45... Nh5
{[%clk 0:00:54.9]} 46. Re2 {[%clk 0:01:20.2]} 46... Ra1+ {[%clk 0:00:52.5]} 47.
Kf2 {[%clk 0:01:20.7]} 47... Nf4 {[%clk 0:00:52]} 48. Rd2 {[%clk 0:01:21.4]}
48... Kg6 {[%clk 0:00:49]} 49. Bf1 {[%clk 0:01:20.3]} 49... f5 {[%clk
0:00:46.8]} 50. e5 {[%clk 0:01:15.2]} 50... Ra8 {[%clk 0:00:39.7]} 51. exd6
{[%clk 0:01:13.9]} 51... Rd8 {[%clk 0:00:38.9]} 52. Rc2 {[%clk 0:01:14.5]} 52...
Rxd6 {[%clk 0:00:37.2]} 53. Rxc5 {[%clk 0:01:15.1]} 53... Rxd5 {[%clk
0:00:35.2]} 54. Rxd5 {[%clk 0:01:13.3]} 54... Nxd5 {[%clk 0:00:35.3]} 55. g3
{[%clk 0:01:12.6]} 55... f4 {[%clk 0:00:32.6]} 56. Bd3+ {[%clk 0:01:10.9]} 56...
Kf6 {[%clk 0:00:32.2]} 57. gxh4 {[%clk 0:01:10.2]} 57... gxh4 {[%clk 0:00:32]}
58. Bc4 {[%clk 0:01:09.1]} 58... Nc3 {[%clk 0:00:31.3]} 59. Ke1 {[%clk 0:01:03]}
59... Ke5 {[%clk 0:00:31.7]} 60. Kd2 {[%clk 0:01:03.4]} 60... Kd4 {[%clk
0:00:32.6]} 61. Be6 {[%clk 0:01:01.4]} 61... Nb5 {[%clk 0:00:31.7]} 62. Bd7
{[%clk 0:00:58.7]} 62... Nd6 {[%clk 0:00:31.9]} 63. Be6 {[%clk 0:00:58.6]} 63...
Nb7 {[%clk 0:00:29.4]} 64. Bc4 {[%clk 0:00:54.2]} 64... Nc5 {[%clk 0:00:30.3]}
65. Bf7 {[%clk 0:00:54.6]} 65... Nd7 {[%clk 0:00:30.4]} 66. Bg6 {[%clk 0:00:49]}
66... Ne5 {[%clk 0:00:31.3]} 67. Be4 {[%clk 0:00:49.6]} 67... Nf7 {[%clk
0:00:31.3]} 68. Bf5 {[%clk 0:00:47.8]} 68... Ng5 {[%clk 0:00:32.2]} 69. Bg4
{[%clk 0:00:48.2]} 69... Nh7 {[%clk 0:00:32.4]} 70. Bd7 {[%clk 0:00:44.6]} 70...
Nf6 {[%clk 0:00:33.3]} 71. Be6 {[%clk 0:00:43.9]} 71... Nh5 {[%clk 0:00:33.4]}
72. Bc8 {[%clk 0:00:41]} 72... Ng3 {[%clk 0:00:34.3]} 73. Ba6 {[%clk 0:00:40.2]}
73... Nf1+ {[%clk 0:00:35.2]} 74. Bxf1 {[%clk 0:00:39.9]} 1-0

[Event "*** SCC Grand Prix: Titled Tuesday Blitz"]
[Site "Chess.com"]
[Date "2020.10.06"]
[Round "3"]
[White "blitzking1729"]
[Black "GMaka"]
[Result "1/2-1/2"]
[WhiteElo "2539"]
[BlackElo "2371"]
[TimeControl "180+1"]
[EndTime "10:28:19 PDT"]
[Termination "Game drawn - insufficient material"]

1. d4 {[%clk 0:03:00.9]} 1... Nf6 {[%clk 0:02:59]} 2. Bg5 {[%clk 0:03:00.2]}
2... e6 {[%clk 0:02:58.6]} 3. Nd2 {[%clk 0:02:59.8]} 3... h6 {[%clk 0:02:58.3]}
4. Bh4 {[%clk 0:02:58.5]} 4... g5 {[%clk 0:02:52.6]} 5. Bg3 {[%clk 0:02:57.2]}
5... Bg7 {[%clk 0:02:49.7]} 6. e4 {[%clk 0:02:56.7]} 6... d6 {[%clk 0:02:49.7]}
7. c3 {[%clk 0:02:56.5]} 7... Nc6 {[%clk 0:02:48.9]} 8. h4 {[%clk 0:02:55]} 8...
e5 {[%clk 0:02:41.8]} 9. hxg5 {[%clk 0:02:54.2]} 9... hxg5 {[%clk 0:02:41.8]}
10. Rxh8+ {[%clk 0:02:54.4]} 10... Bxh8 {[%clk 0:02:42.7]} 11. dxe5 {[%clk
0:02:54.6]} 11... dxe5 {[%clk 0:02:42.1]} 12. Ngf3 {[%clk 0:02:54.7]} 12... Ng8
{[%clk 0:02:03]} 13. Nc4 {[%clk 0:02:51.8]} 13... Qxd1+ {[%clk 0:02:02.2]} 14.
Rxd1 {[%clk 0:02:50.4]} 14... f6 {[%clk 0:01:55.6]} 15. Ne3 {[%clk 0:02:46.9]}
15... Nge7 {[%clk 0:01:55.8]} 16. Bb5 {[%clk 0:02:40.6]} 16... Be6 {[%clk
0:01:48.3]} 17. Nd5 {[%clk 0:02:28.3]} 17... O-O-O {[%clk 0:01:46.1]} 18. Bc4
{[%clk 0:02:25.7]} 18... Bxd5 {[%clk 0:01:42.4]} 19. exd5 {[%clk 0:02:14.6]}
19... Na5 {[%clk 0:01:38.9]} 20. b3 {[%clk 0:01:57.7]} 20... Nxc4 {[%clk
0:01:34.3]} 21. bxc4 {[%clk 0:01:57.2]} 21... Bg7 {[%clk 0:01:28.5]} 22. Nd2
{[%clk 0:01:52.3]} 22... f5 {[%clk 0:01:21.5]} 23. f3 {[%clk 0:01:50.8]} 23...
c6 {[%clk 0:01:14.3]} 24. dxc6 {[%clk 0:01:44.4]} 24... Nxc6 {[%clk 0:01:15.2]}
25. Bf2 {[%clk 0:01:39.4]} 25... Rd3 {[%clk 0:01:13.2]} 26. Rc1 {[%clk
0:01:29.8]} 26... Bf8 {[%clk 0:01:08.2]} 27. Ke2 {[%clk 0:01:28.3]} 27... Rd7
{[%clk 0:01:07.6]} 28. g4 {[%clk 0:01:28.2]} 28... Rf7 {[%clk 0:00:52.8]} 29.
gxf5 {[%clk 0:01:25.1]} 29... Rxf5 {[%clk 0:00:53.7]} 30. Ne4 {[%clk 0:01:25]}
30... g4 {[%clk 0:00:50.3]} 31. fxg4 {[%clk 0:01:21.6]} 31... Rf4 {[%clk
0:00:50.9]} 32. Kd3 {[%clk 0:01:07.2]} 32... Rxg4 {[%clk 0:00:49.3]} 33. Rh1
{[%clk 0:01:04.7]} 33... Be7 {[%clk 0:00:48.7]} 34. Rh7 {[%clk 0:01:02.6]} 34...
Rf4 {[%clk 0:00:42.6]} 35. Bxa7 {[%clk 0:00:54.8]} 35... Rf3+ {[%clk 0:00:32.6]}
36. Be3 {[%clk 0:00:52.3]} 36... Rf1 {[%clk 0:00:25.9]} 37. Bc5 {[%clk
0:00:44.7]} 37... Bxc5 {[%clk 0:00:24]} 38. Nxc5 {[%clk 0:00:44.4]} 38... Rb1
{[%clk 0:00:23.2]} 39. Ne4 {[%clk 0:00:40.8]} 39... Ra1 {[%clk 0:00:21]} 40.
Nd6+ {[%clk 0:00:40]} 40... Kd8 {[%clk 0:00:21.1]} 41. Nxb7+ {[%clk 0:00:39.7]}
41... Ke8 {[%clk 0:00:21.3]} 42. Rc7 {[%clk 0:00:37.7]} 42... Ne7 {[%clk
0:00:18.8]} 43. Nd6+ {[%clk 0:00:34.9]} 43... Kf8 {[%clk 0:00:18]} 44. Ra7
{[%clk 0:00:33.9]} 44... Rd1+ {[%clk 0:00:16.7]} 45. Ke4 {[%clk 0:00:31.6]}
45... Rxd6 {[%clk 0:00:17.6]} 46. c5 {[%clk 0:00:28.4]} 46... Re6 {[%clk
0:00:16.1]} 47. a4 {[%clk 0:00:25.7]} 47... Ke8 {[%clk 0:00:16.3]} 48. a5 {[%clk
0:00:24.2]} 48... Kd8 {[%clk 0:00:16.8]} 49. Rb7 {[%clk 0:00:24.1]} 49... Kc8
{[%clk 0:00:15.7]} 50. Rb6 {[%clk 0:00:23.4]} 50... Rxb6 {[%clk 0:00:09.1]} 51.
axb6 {[%clk 0:00:20.5]} 51... Kb7 {[%clk 0:00:04.2]} 52. Kxe5 {[%clk 0:00:19.5]}
52... Kc6 {[%clk 0:00:04.3]} 53. Ke6 {[%clk 0:00:17.3]} 53... Nc8 {[%clk
0:00:03.7]} 54. Kf7 {[%clk 0:00:13.4]} 54... Nxb6 {[%clk 0:00:02.4]} 55. cxb6
{[%clk 0:00:13.4]} 55... Kxb6 {[%clk 0:00:03.3]} 56. Ke6 {[%clk 0:00:14]} 56...
Kc5 {[%clk 0:00:04.2]} 57. Ke5 {[%clk 0:00:14.5]} 57... Kc4 {[%clk 0:00:05.1]}
58. Ke4 {[%clk 0:00:15.4]} 58... Kxc3 {[%clk 0:00:06]} 1/2-1/2